{"text_format":"1","workbook":"xlsx","n_sheets":7,"sheets":["ÖĞRENCİ_LİSTESİ","1.Dön.-1.Sın.","1.Dön.-2.Sın.","2.Dön.-1.Sın.","2.Dön.-2.Sın.","PERFORMANS_ÖLÇEKLERİ ","PROJE-TESPİT-FORMU"],"not_rendered":{"charts":4,"images":0,"macros":1,"external_links":0,"defined_names":5,"comments":0,"pivot_tables":0},"unopened":[],"bounds":{"document_bytes":16777216,"sheet_cells":100000,"rows_first":2000,"rows_last":500,"rows_between":2000,"halvings":0,"cell_chars":16384,"cell_head_chars":4096},"cells_cut":0,"cells_raw":0,"read":"whole","date_system":"1900"}

{"sheet":"ÖĞRENCİ_LİSTESİ","index":0,"n_rows":46,"n_cols":10,"rows_kept":46,"cut":false,"hidden":false,"merged":[]}
["SIRA NO","SINIFI","NO","ADI","SOYADI ",null,"SINIF YAZ"]
[{"$f":"IF(B2=\"\",\"\",ROW()-1)","v":""},null,null,null,null,null,null,null,"OKULUN ADI ","GÜL KIZ MESLEKİ VE TEKNİK ANADOLU LİSESİ"]
[{"$f":"IF(B3=\"\",\"\",ROW()-1)","v":""},null,null,null,null,null,null,null,"EĞİTİM ÖĞRETİM YILI","2024-2025 EĞİTİM ÖĞRETİM YILI"]
["",null,null,null,null,null,null,null,"DERSİN ADI","AHİLİK KÜLTÜRÜ VE GİRİŞİMCİLİK"]
["",null,null,null,null,null,null,null,"DERS ÖĞRETMENİ","Ayşe ÖZTÜRK"]
["",null,null,null,null,null,null,null,"OKUL MÜDÜRÜ","Mustafa KÜPELİ"]
[""]
[""]
[""]
[""]
[""]
[""]
[""]
[""]
[""]
[""]
[""]
[""]
[""]
[""]
[""]
[""]
[""]
[""]
[""]
[""]
[""]
[""]
[""]
[""]
[""]
[""]
[""]
[""]
[""]
[""]
[""]
[""]
[""]
[""]
[""]
[""]
[""]
[""]
[""]
[""]

{"sheet":"1.Dön.-1.Sın.","index":1,"n_rows":69,"n_cols":25,"rows_kept":69,"cut":false,"hidden":false,"merged":[[6,18,6,22],[7,18,7,22],[8,18,8,22],[6,13,6,16],[25,0,25,2],[10,13,10,18],[11,13,11,18],[10,19,10,23],[11,19,11,23],[18,0,18,2],[16,15,16,23],[9,13,9,16],[10,2,10,4],[11,2,11,4],[13,0,13,2],[9,18,9,22],[3,13,3,23],[26,0,26,23],[14,15,14,23],[15,15,15,23],[19,0,19,2],[20,0,20,2],[21,0,21,2],[23,0,23,2],[24,0,24,2],[22,0,22,2],[14,0,17,14],[6,2,6,5],[18,23,19,23],[7,2,7,4],[8,2,8,4],[9,2,9,4],[7,13,7,16],[8,13,8,16],[0,0,0,23],[1,3,1,23],[2,9,2,12],[3,9,3,12],[4,9,4,12],[1,0,1,2],[2,0,2,2],[4,0,4,2],[3,0,3,2],[2,3,2,8],[3,3,3,8],[4,3,4,8],[4,13,4,23],[2,13,2,23]]}
["KLASİK SINAV ANALİZİ"]
["OKUL ADI:",null,null,{"$f":"ÖĞRENCİ_LİSTESİ!J2","v":"GÜL KIZ MESLEKİ VE TEKNİK ANADOLU LİSESİ"}]
["ÖĞRETİM YILI:",null,null,{"$f":"ÖĞRENCİ_LİSTESİ!J3","v":"2024-2025 EĞİTİM ÖĞRETİM YILI"},null,null,null,null,null,"DERS:",null,null,null,{"$f":"ÖĞRENCİ_LİSTESİ!J4","v":"AHİLİK KÜLTÜRÜ VE GİRİŞİMCİLİK"}]
["DÖNEM:",null,null,null,null,null,null,null,null,"ÖĞRETMEN ADI:",null,null,null,{"$f":"ÖĞRENCİ_LİSTESİ!J5","v":"Ayşe ÖZTÜRK"}]
["SINIF:",null,null,null,null,null,null,null,null,"SINAV NO:"]
[]
[null,null,"PUAN DAĞILIMI",null,null,null,null,null,null,null,null,null,null,"ÖĞRENCİ SAYISI :",null,null,null,{"$f":"COUNTA($B$29:$B$69)","v":0},"ARİTMETİK ORTALAMA :",null,null,null,null,{"$f":"IF($R$7=0,\"\",AVERAGE(X29:X69))","v":""}]
[null,null,"0 - 49 ARASI",null,null,{"$f":"COUNTIF($Y$29:$Y$69,1)","v":0},null,null,null,null,null,null,null,"BAŞARILI :",null,null,null,{"$f":"COUNTIF($Y$29:$Y$69,\">1\")","v":0},"MEDYAN (ORTANCA) :",null,null,null,null,{"$f":"IF($R$7=0,\"\",MEDIAN(X29:X69))","v":""}]
[null,null,"50 - 59 ARASI",null,null,{"$f":"COUNTIF($Y$29:$Y$69,2)","v":0},null,null,null,null,null,null,null,"BAŞARISIZ :",null,null,null,{"$f":"COUNTIF($Y$29:$Y$69,\"1\")","v":0},"RANJ (DİZİ GENİŞLİĞİ) :",null,null,null,null,{"$f":"IF($R$7=0,\"\",(LARGE(X29:X69,1)-SMALL(X29:X69,1)))","v":""}]
[null,null,"60 - 69 ARASI",null,null,{"$f":"COUNTIF($Y$29:$Y$69,3)","v":0},null,null,null,null,null,null,null,"BAŞARI ORANI :",null,null,null,{"$f":"IF($R$7=0,\"\",100*R8/$R$7)","v":""},"STANDART SAPMA :",null,null,null,null,{"$f":"IF($R$7=0,\"\",(STDEV(X29:X69)))","v":""}]
[null,null,"70 - 84 ARASI",null,null,{"$f":"COUNTIF($Y$29:$Y$69,4)","v":0},null,null,null,null,null,null,null,"ÇARPIKLIK DEĞERİ :",null,null,null,null,null,{"$f":"IF($R$7=0,\"\",IF(X10=0,\"\",(3*($X$7-$X$8)/$X$10)))","v":""}]
[null,null,"85 - 100 ARASI",null,null,{"$f":"COUNTIF($Y$29:$Y$69,5)","v":0},null,null,null,null,null,null,null,"SINAVIN ZORLUK DERECESİ :",null,null,null,null,null,{"$f":"IF(T11=\"\",\"\",(IF(T11<=0,\"SINAV KOLAY\",IF(T11<0.1,\"SINAV HAFİF ZOR\",IF(T11<=0.25,\"SINAV ORTA ZOR\",\"SINAV ÇOK ZOR\")))))","v":""}]
[]
["AÇIKLAMA :"]
[{"$f":"IF(T12=\"\",\"\",(IF($T$12=\"SINAV KOLAY\",\"Sınavın Çarpıklık Değerine (Zorluk Derecesine) göre; Sınav Kolaydır. Sınav öğrenci seviyesinin altındadır yada beklenen davranışlar çok iyi kazanılmıştır.\",IF($T$12=\"SINAV HAFİF ZOR\",\"Sınavın Çarpıklık Değerine (Zorluk Derecesine) göre; Sınav Hafif Zordur. Sınav öğrenci seviyesindedir yada beklenen davranışlar kazanılmıştır.\",IF($T$12=\"SINAV ORTA ZOR\",\"Sınavın Çarpıklık Değerine (Zorluk Derecesine) göre; Sınav Orta Zordur. Sınav öğrenci seviyesinin biraz üzerindedir yada beklenen davranışların bir kısmı kazanılmamıştır.\",IF($T$12=\"SINAV ÇOK ZOR\",\"Sınavın Çarpıklık Değerine (Zorluk Derecesine) göre; Sınav Çok Zordur. Sınav öğrenci seviyesinin üzerindedir yada beklenen davranışlar kazanılmamıştır.\",\"\"))))&IF($X$9>=$X$21/2+10,\" Dizi genişliği büyük olduğundan öğrenciler arasında belirgin bir seviye farkı vardır.\",IF($X$9<=$X$21/2-10,\" Dizi genişliği küçük olduğundan öğrencilerin çoğunluğu aynı seviyededir.\",\" Dizi genişliği beklenen değerdedir ve öğrenciler arasında seviye farkı yoktur.\"))&IF($X$9/$X$10<4,\" Standart Sapma büyüktür ve Sınavın güvenilirliği yüksektir.\",IF($X$9/$X$10>6,\" Standart Sapma küçüktür ve Sınavın güvenilirliği düşüktür.\",\" Standart Sapma beklenen değerdedir ve Sınavın güvenilirliği iyidir.\"))))","v":""},null,null,null,null,null,null,null,null,null,null,null,null,null,null,"……/……/20……"]
[null,null,null,null,null,null,null,null,null,null,null,null,null,null,null,{"$f":"IF(N4=\"\",\"\",N4)","v":"Ayşe ÖZTÜRK"}]
[null,null,null,null,null,null,null,null,null,null,null,null,null,null,null,"İmza "]
[]
["SORULAR",null,null,1,2,3,4,5,6,7,8,9,10,11,12,13,14,15,16,17,18,19,20,"TOPLAM / ORTALAMA"]
["KONU VE KAZANIMLAR",null,null,"KONU1 ","KONU2","KONU3","KONU4","KONU5","KONU6","KONU7","KONU8","KONU9","KONU10"]
["PUAN DEĞERLERİ",null,null,10,10,10,10,10,10,10,10,10,10,null,null,null,null,null,null,null,null,null,null,{"$f":"SUM(D21:W21)","v":100}]
["SORUYA CEVAP VEREN ÖĞRENCİ SAYISI:",null,null,{"$f":"IF(D21=\"\",\"\",COUNTA(D29:D69))","v":0},0,0,0,0,0,0,0,0,0,"","","","","","","","","","",{"$f":"IF(X21=0,\"\",AVERAGE(D22:W22))","v":0}]
["SORUYA CEVAP VERMEYEN ÖĞRENCİ SAYISI:",null,null,{"$f":"IF(D21=\"\",\"\",$R$7-D22)","v":0},{"$f":"IF(E21=\"\",\"\",$R$7-E22)","v":0},0,0,0,0,0,0,0,0,"","","","","","","","","","",{"$f":"IF(X21=0,\"\",AVERAGE(D23:W23))","v":0}]
["SORUNUN CEVAPLANMA YÜZDESİ:",null,null,{"$f":"IF($R$7=0,\"\",IF(D21=\"\",\"\",100*D22/$R$7))","v":""},"","","","","","","","","",{"$f":"IF($R$7=0,\"\",IF(N21=\"\",\"\",100*N22/$R$7))","v":""},{"$f":"IF($R$7=0,\"\",IF(O21=\"\",\"\",100*O22/$R$7))","v":""},"","","","","","","","",{"$f":"IF($R$7=0,\"\",IF(X21=0,\"\",AVERAGE(D24:W24)))","v":""}]
["SORUDAN ALINAN ORT. PUAN:",null,null,{"$f":"IF($R$7=0,\"\",IF(D21=\"\",\"\",SUM(D29:D69)/$R$7))","v":""},"","","","","","","","","","","","","","","","","","","",{"$f":"IF($R$7=0,\"\",IF(X21=0,\"\",AVERAGE(D25:W25)))","v":""}]
["KONU ANALİZİ",null,null,{"$f":"IF(D25=\"\",\"\",(IF(D25<D21*0.25,\"TEKRAR EDİLMELİ\",IF(D25<D21*0.5,\"TEKRAR EDİLEBİLİR\",IF(D25<D21*0.75,\"ANLAŞILMIŞ\",IF(D25>=D21*0.75,\"İYİ ANLAŞILMIŞ\",\"\"))))))","v":""},{"$f":"IF(E25=\"\",\"\",(IF(E25<E21*0.25,\"TEKRAR EDİLMELİ\",IF(E25<E21*0.5,\"TEKRAR EDİLEBİLİR\",IF(E25<E21*0.75,\"ANLAŞILMIŞ\",IF(E25>=0.75,\"İYİ ANLAŞILMIŞ\",\"\"))))))","v":""},"","","","","","","","","","","","","","","","","",""]
["ÖĞRENCİLERİN SORULARA VERDİĞİ CEVAPLARIN PUAN DEĞERLERİ"]
["SIRA","NO","AD SOYAD",1,2,3,4,5,6,7,8,9,10,11,12,13,14,15,16,17,18,19,20,"PUANI"]
[1,null,null,null,null,null,null,null,null,null,null,null,null,null,null,null,null,null,null,null,null,null,null,{"$f":"IF(B29=\"\",\"\",SUM(D29:W29))","v":""},{"$f":"IF(X29=\"\",\"\",IF(X29<50,1,IF(X29<60,2,IF(X29<70,3,IF(X29<85,4,5)))))","v":""}]
[2,null,null,null,null,null,null,null,null,null,null,null,null,null,null,null,null,null,null,null,null,null,null,{"$f":"IF(B30=\"\",\"\",SUM(D30:W30))","v":""},{"$f":"IF(X30=\"\",\"\",IF(X30<50,1,IF(X30<60,2,IF(X30<70,3,IF(X30<85,4,5)))))","v":""}]
[3,null,null,null,null,null,null,null,null,null,null,null,null,null,null,null,null,null,null,null,null,null,null,"",""]
[4,null,null,null,null,null,null,null,null,null,null,null,null,null,null,null,null,null,null,null,null,null,null,"",""]
[5,null,null,null,null,null,null,null,null,null,null,null,null,null,null,null,null,null,null,null,null,null,null,"",""]
[6,null,null,null,null,null,null,null,null,null,null,null,null,null,null,null,null,null,null,null,null,null,null,"",""]
[7,null,null,null,null,null,null,null,null,null,null,null,null,null,null,null,null,null,null,null,null,null,null,"",""]
[8,null,null,null,null,null,null,null,null,null,null,null,null,null,null,null,null,null,null,null,null,null,null,"",""]
[9,null,null,null,null,null,null,null,null,null,null,null,null,null,null,null,null,null,null,null,null,null,null,"",""]
[10,null,null,null,null,null,null,null,null,null,null,null,null,null,null,null,null,null,null,null,null,null,null,"",""]
[11,null,null,null,null,null,null,null,null,null,null,null,null,null,null,null,null,null,null,null,null,null,null,"",""]
[12,null,null,null,null,null,null,null,null,null,null,null,null,null,null,null,null,null,null,null,null,null,null,"",""]
[13,null,null,null,null,null,null,null,null,null,null,null,null,null,null,null,null,null,null,null,null,null,null,"",""]
[14,null,null,null,null,null,null,null,null,null,null,null,null,null,null,null,null,null,null,null,null,null,null,"",""]
[15,null,null,null,null,null,null,null,null,null,null,null,null,null,null,null,null,null,null,null,null,null,null,"",""]
[16,null,null,null,null,null,null,null,null,null,null,null,null,null,null,null,null,null,null,null,null,null,null,"",""]
[17,null,null,null,null,null,null,null,null,null,null,null,null,null,null,null,null,null,null,null,null,null,null,"",""]
[18,null,null,null,null,null,null,null,null,null,null,null,null,null,null,null,null,null,null,null,null,null,null,"",""]
[19,null,null,null,null,null,null,null,null,null,null,null,null,null,null,null,null,null,null,null,null,null,null,"",""]
[20,null,null,null,null,null,null,null,null,null,null,null,null,null,null,null,null,null,null,null,null,null,null,"",""]
[21,null,null,null,null,null,null,null,null,null,null,null,null,null,null,null,null,null,null,null,null,null,null,"",""]
[22,null,null,null,null,null,null,null,null,null,null,null,null,null,null,null,null,null,null,null,null,null,null,"",""]
[23,null,null,null,null,null,null,null,null,null,null,null,null,null,null,null,null,null,null,null,null,null,null,"",""]
[24,null,null,null,null,null,null,null,null,null,null,null,null,null,null,null,null,null,null,null,null,null,null,"",""]
[25,null,null,null,null,null,null,null,null,null,null,null,null,null,null,null,null,null,null,null,null,null,null,"",""]
[26,null,null,null,null,null,null,null,null,null,null,null,null,null,null,null,null,null,null,null,null,null,null,"",""]
[27,null,null,null,null,null,null,null,null,null,null,null,null,null,null,null,null,null,null,null,null,null,null,"",""]
[28,null,null,null,null,null,null,null,null,null,null,null,null,null,null,null,null,null,null,null,null,null,null,"",""]
[29,null,null,null,null,null,null,null,null,null,null,null,null,null,null,null,null,null,null,null,null,null,null,"",""]
[30,null,null,null,null,null,null,null,null,null,null,null,null,null,null,null,null,null,null,null,null,null,null,"",""]
[31,null,null,null,null,null,null,null,null,null,null,null,null,null,null,null,null,null,null,null,null,null,null,"",""]
[32,null,null,null,null,null,null,null,null,null,null,null,null,null,null,null,null,null,null,null,null,null,null,"",""]
[33,null,null,null,null,null,null,null,null,null,null,null,null,null,null,null,null,null,null,null,null,null,null,"",""]
[34,null,null,null,null,null,null,null,null,null,null,null,null,null,null,null,null,null,null,null,null,null,null,"",""]
[35,null,null,null,null,null,null,null,null,null,null,null,null,null,null,null,null,null,null,null,null,null,null,"",""]
[36,null,null,null,null,null,null,null,null,null,null,null,null,null,null,null,null,null,null,null,null,null,null,"",""]
[37,null,null,null,null,null,null,null,null,null,null,null,null,null,null,null,null,null,null,null,null,null,null,"",""]
[38,null,null,null,null,null,null,null,null,null,null,null,null,null,null,null,null,null,null,null,null,null,null,"",""]
[39,null,null,null,null,null,null,null,null,null,null,null,null,null,null,null,null,null,null,null,null,null,null,""]
[40,null,null,null,null,null,null,null,null,null,null,null,null,null,null,null,null,null,null,null,null,null,null,"",""]
[41,null,null,null,null,null,null,null,null,null,null,null,null,null,null,null,null,null,null,null,null,null,null,"",""]

{"sheet":"1.Dön.-2.Sın.","index":2,"n_rows":69,"n_cols":25,"rows_kept":69,"cut":false,"hidden":false,"merged":[[0,0,0,23],[1,0,1,2],[1,3,1,23],[2,0,2,2],[2,3,2,8],[2,9,2,12],[2,13,2,23],[3,0,3,2],[3,3,3,8],[3,9,3,12],[3,13,3,23],[4,0,4,2],[4,3,4,8],[4,9,4,12],[4,13,4,23],[6,2,6,5],[6,13,6,16],[6,18,6,22],[7,2,7,4],[7,13,7,16],[7,18,7,22],[8,2,8,4],[8,13,8,16],[8,18,8,22],[9,2,9,4],[9,13,9,16],[9,18,9,22],[18,0,18,2],[18,23,19,23],[19,0,19,2],[10,2,10,4],[10,13,10,18],[10,19,10,23],[11,2,11,4],[11,13,11,18],[11,19,11,23],[13,0,13,2],[14,0,17,14],[14,15,14,23],[15,15,15,23],[16,15,16,23],[26,0,26,23],[20,0,20,2],[21,0,21,2],[22,0,22,2],[23,0,23,2],[24,0,24,2],[25,0,25,2]]}
["KLASİK SINAV ANALİZİ"]
["OKUL ADI:",null,null,{"$f":"ÖĞRENCİ_LİSTESİ!J2","v":"GÜL KIZ MESLEKİ VE TEKNİK ANADOLU LİSESİ"}]
["ÖĞRETİM YILI:",null,null,{"$f":"ÖĞRENCİ_LİSTESİ!J3","v":"2024-2025 EĞİTİM ÖĞRETİM YILI"},null,null,null,null,null,"DERS:",null,null,null,{"$f":"ÖĞRENCİ_LİSTESİ!J4","v":"AHİLİK KÜLTÜRÜ VE GİRİŞİMCİLİK"}]
["DÖNEM:",null,null,null,null,null,null,null,null,"ÖĞRETMEN ADI:",null,null,null,{"$f":"ÖĞRENCİ_LİSTESİ!J5","v":"Ayşe ÖZTÜRK"}]
["SINIF:",null,null,null,null,null,null,null,null,"SINAV NO:"]
[]
[null,null,"PUAN DAĞILIMI",null,null,null,null,null,null,null,null,null,null,"ÖĞRENCİ SAYISI :",null,null,null,{"$f":"COUNTA($B$29:$B$69)","v":0},"ARİTMETİK ORTALAMA :",null,null,null,null,{"$f":"IF($R$7=0,\"\",AVERAGE(X29:X69))","v":""}]
[null,null,"0 - 49 ARASI",null,null,{"$f":"COUNTIF($Y$29:$Y$69,1)","v":0},null,null,null,null,null,null,null,"BAŞARILI :",null,null,null,{"$f":"COUNTIF($Y$29:$Y$69,\">1\")","v":0},"MEDYAN (ORTANCA) :",null,null,null,null,{"$f":"IF($R$7=0,\"\",MEDIAN(X29:X69))","v":""}]
[null,null,"50 - 59 ARASI",null,null,{"$f":"COUNTIF($Y$29:$Y$69,2)","v":0},null,null,null,null,null,null,null,"BAŞARISIZ :",null,null,null,{"$f":"COUNTIF($Y$29:$Y$69,\"1\")","v":0},"RANJ (DİZİ GENİŞLİĞİ) :",null,null,null,null,{"$f":"IF($R$7=0,\"\",(LARGE(X29:X69,1)-SMALL(X29:X69,1)))","v":""}]
[null,null,"60 - 69 ARASI",null,null,{"$f":"COUNTIF($Y$29:$Y$69,3)","v":0},null,null,null,null,null,null,null,"BAŞARI ORANI :",null,null,null,{"$f":"IF($R$7=0,\"\",100*R8/$R$7)","v":""},"STANDART SAPMA :",null,null,null,null,{"$f":"IF($R$7=0,\"\",(STDEV(X29:X69)))","v":""}]
[null,null,"70 - 84 ARASI",null,null,{"$f":"COUNTIF($Y$29:$Y$69,4)","v":0},null,null,null,null,null,null,null,"ÇARPIKLIK DEĞERİ :",null,null,null,null,null,{"$f":"IF($R$7=0,\"\",IF(X10=0,\"\",(3*($X$7-$X$8)/$X$10)))","v":""}]
[null,null,"85 - 100 ARASI",null,null,{"$f":"COUNTIF($Y$29:$Y$69,5)","v":0},null,null,null,null,null,null,null,"SINAVIN ZORLUK DERECESİ :",null,null,null,null,null,{"$f":"IF(T11=\"\",\"\",(IF(T11<=0,\"SINAV KOLAY\",IF(T11<0.1,\"SINAV HAFİF ZOR\",IF(T11<=0.25,\"SINAV ORTA ZOR\",\"SINAV ÇOK ZOR\")))))","v":""}]
[]
["AÇIKLAMA :"]
[{"$f":"IF(T12=\"\",\"\",(IF($T$12=\"SINAV KOLAY\",\"Sınavın Çarpıklık Değerine (Zorluk Derecesine) göre; Sınav Kolaydır. Sınav öğrenci seviyesinin altındadır yada beklenen davranışlar çok iyi kazanılmıştır.\",IF($T$12=\"SINAV HAFİF ZOR\",\"Sınavın Çarpıklık Değerine (Zorluk Derecesine) göre; Sınav Hafif Zordur. Sınav öğrenci seviyesindedir yada beklenen davranışlar kazanılmıştır.\",IF($T$12=\"SINAV ORTA ZOR\",\"Sınavın Çarpıklık Değerine (Zorluk Derecesine) göre; Sınav Orta Zordur. Sınav öğrenci seviyesinin biraz üzerindedir yada beklenen davranışların bir kısmı kazanılmamıştır.\",IF($T$12=\"SINAV ÇOK ZOR\",\"Sınavın Çarpıklık Değerine (Zorluk Derecesine) göre; Sınav Çok Zordur. Sınav öğrenci seviyesinin üzerindedir yada beklenen davranışlar kazanılmamıştır.\",\"\"))))&IF($X$9>=$X$21/2+10,\" Dizi genişliği büyük olduğundan öğrenciler arasında belirgin bir seviye farkı vardır.\",IF($X$9<=$X$21/2-10,\" Dizi genişliği küçük olduğundan öğrencilerin çoğunluğu aynı seviyededir.\",\" Dizi genişliği beklenen değerdedir ve öğrenciler arasında seviye farkı yoktur.\"))&IF($X$9/$X$10<4,\" Standart Sapma büyüktür ve Sınavın güvenilirliği yüksektir.\",IF($X$9/$X$10>6,\" Standart Sapma küçüktür ve Sınavın güvenilirliği düşüktür.\",\" Standart Sapma beklenen değerdedir ve Sınavın güvenilirliği iyidir.\"))))","v":""},null,null,null,null,null,null,null,null,null,null,null,null,null,null,"……/……/20……"]
[null,null,null,null,null,null,null,null,null,null,null,null,null,null,null,{"$f":"IF(N4=\"\",\"\",N4)","v":"Ayşe ÖZTÜRK"}]
[null,null,null,null,null,null,null,null,null,null,null,null,null,null,null,"İmza "]
[]
["SORULAR",null,null,1,2,3,4,5,6,7,8,9,10,11,12,13,14,15,16,17,18,19,20,"TOPLAM / ORTALAMA"]
["KONU VE KAZANIMLAR",null,null,"KONU1 ","KONU2","KONU3","KONU4","KONU5","KONU6","KONU7","KONU8","KONU9","KONU10"]
["PUAN DEĞERLERİ",null,null,10,10,10,10,10,10,10,10,10,10,null,null,null,null,null,null,null,null,null,null,{"$f":"SUM(D21:W21)","v":100}]
["SORUYA CEVAP VEREN ÖĞRENCİ SAYISI:",null,null,{"$f":"IF(D21=\"\",\"\",COUNTA(D29:D69))","v":0},0,0,0,0,0,0,0,0,0,"","","","","","","","","","",{"$f":"IF(X21=0,\"\",AVERAGE(D22:W22))","v":0}]
["SORUYA CEVAP VERMEYEN ÖĞRENCİ SAYISI:",null,null,{"$f":"IF(D21=\"\",\"\",$R$7-D22)","v":0},{"$f":"IF(E21=\"\",\"\",$R$7-E22)","v":0},0,0,0,0,0,0,0,0,"","","","","","","","","","",{"$f":"IF(X21=0,\"\",AVERAGE(D23:W23))","v":0}]
["SORUNUN CEVAPLANMA YÜZDESİ:",null,null,{"$f":"IF($R$7=0,\"\",IF(D21=\"\",\"\",100*D22/$R$7))","v":""},"","","","","","","","","",{"$f":"IF($R$7=0,\"\",IF(N21=\"\",\"\",100*N22/$R$7))","v":""},{"$f":"IF($R$7=0,\"\",IF(O21=\"\",\"\",100*O22/$R$7))","v":""},"","","","","","","","",{"$f":"IF($R$7=0,\"\",IF(X21=0,\"\",AVERAGE(D24:W24)))","v":""}]
["SORUDAN ALINAN ORT. PUAN:",null,null,{"$f":"IF($R$7=0,\"\",IF(D21=\"\",\"\",SUM(D29:D69)/$R$7))","v":""},"","","","","","","","","","","","","","","","","","","",{"$f":"IF($R$7=0,\"\",IF(X21=0,\"\",AVERAGE(D25:W25)))","v":""}]
["KONU ANALİZİ",null,null,{"$f":"IF(D25=\"\",\"\",(IF(D25<D21*0.25,\"TEKRAR EDİLMELİ\",IF(D25<D21*0.5,\"TEKRAR EDİLEBİLİR\",IF(D25<D21*0.75,\"ANLAŞILMIŞ\",IF(D25>=D21*0.75,\"İYİ ANLAŞILMIŞ\",\"\"))))))","v":""},{"$f":"IF(E25=\"\",\"\",(IF(E25<E21*0.25,\"TEKRAR EDİLMELİ\",IF(E25<E21*0.5,\"TEKRAR EDİLEBİLİR\",IF(E25<E21*0.75,\"ANLAŞILMIŞ\",IF(E25>=0.75,\"İYİ ANLAŞILMIŞ\",\"\"))))))","v":""},"","","","","","","","","","","","","","","","","",""]
["ÖĞRENCİLERİN SORULARA VERDİĞİ CEVAPLARIN PUAN DEĞERLERİ"]
["SIRA","NO","AD SOYAD",1,2,3,4,5,6,7,8,9,10,11,12,13,14,15,16,17,18,19,20,"PUANI"]
[1,null,null,null,null,null,null,null,null,null,null,null,null,null,null,null,null,null,null,null,null,null,null,{"$f":"IF(B29=\"\",\"\",SUM(D29:W29))","v":""},{"$f":"IF(X29=\"\",\"\",IF(X29<50,1,IF(X29<60,2,IF(X29<70,3,IF(X29<85,4,5)))))","v":""}]
[2,null,null,null,null,null,null,null,null,null,null,null,null,null,null,null,null,null,null,null,null,null,null,{"$f":"IF(B30=\"\",\"\",SUM(D30:W30))","v":""},{"$f":"IF(X30=\"\",\"\",IF(X30<50,1,IF(X30<60,2,IF(X30<70,3,IF(X30<85,4,5)))))","v":""}]
[3,null,null,null,null,null,null,null,null,null,null,null,null,null,null,null,null,null,null,null,null,null,null,"",""]
[4,null,null,null,null,null,null,null,null,null,null,null,null,null,null,null,null,null,null,null,null,null,null,"",""]
[5,null,null,null,null,null,null,null,null,null,null,null,null,null,null,null,null,null,null,null,null,null,null,"",""]
[6,null,null,null,null,null,null,null,null,null,null,null,null,null,null,null,null,null,null,null,null,null,null,"",""]
[7,null,null,null,null,null,null,null,null,null,null,null,null,null,null,null,null,null,null,null,null,null,null,"",""]
[8,null,null,null,null,null,null,null,null,null,null,null,null,null,null,null,null,null,null,null,null,null,null,"",""]
[9,null,null,null,null,null,null,null,null,null,null,null,null,null,null,null,null,null,null,null,null,null,null,"",""]
[10,null,null,null,null,null,null,null,null,null,null,null,null,null,null,null,null,null,null,null,null,null,null,"",""]
[11,null,null,null,null,null,null,null,null,null,null,null,null,null,null,null,null,null,null,null,null,null,null,"",""]
[12,null,null,null,null,null,null,null,null,null,null,null,null,null,null,null,null,null,null,null,null,null,null,"",""]
[13,null,null,null,null,null,null,null,null,null,null,null,null,null,null,null,null,null,null,null,null,null,null,"",""]
[14,null,null,null,null,null,null,null,null,null,null,null,null,null,null,null,null,null,null,null,null,null,null,"",""]
[15,null,null,null,null,null,null,null,null,null,null,null,null,null,null,null,null,null,null,null,null,null,null,"",""]
[16,null,null,null,null,null,null,null,null,null,null,null,null,null,null,null,null,null,null,null,null,null,null,"",""]
[17,null,null,null,null,null,null,null,null,null,null,null,null,null,null,null,null,null,null,null,null,null,null,"",""]
[18,null,null,null,null,null,null,null,null,null,null,null,null,null,null,null,null,null,null,null,null,null,null,"",""]
[19,null,null,null,null,null,null,null,null,null,null,null,null,null,null,null,null,null,null,null,null,null,null,"",""]
[20,null,null,null,null,null,null,null,null,null,null,null,null,null,null,null,null,null,null,null,null,null,null,"",""]
[21,null,null,null,null,null,null,null,null,null,null,null,null,null,null,null,null,null,null,null,null,null,null,"",""]
[22,null,null,null,null,null,null,null,null,null,null,null,null,null,null,null,null,null,null,null,null,null,null,"",""]
[23,null,null,null,null,null,null,null,null,null,null,null,null,null,null,null,null,null,null,null,null,null,null,"",""]
[24,null,null,null,null,null,null,null,null,null,null,null,null,null,null,null,null,null,null,null,null,null,null,"",""]
[25,null,null,null,null,null,null,null,null,null,null,null,null,null,null,null,null,null,null,null,null,null,null,"",""]
[26,null,null,null,null,null,null,null,null,null,null,null,null,null,null,null,null,null,null,null,null,null,null,"",""]
[27,null,null,null,null,null,null,null,null,null,null,null,null,null,null,null,null,null,null,null,null,null,null,"",""]
[28,null,null,null,null,null,null,null,null,null,null,null,null,null,null,null,null,null,null,null,null,null,null,"",""]
[29,null,null,null,null,null,null,null,null,null,null,null,null,null,null,null,null,null,null,null,null,null,null,"",""]
[30,null,null,null,null,null,null,null,null,null,null,null,null,null,null,null,null,null,null,null,null,null,null,"",""]
[31,null,null,null,null,null,null,null,null,null,null,null,null,null,null,null,null,null,null,null,null,null,null,"",""]
[32,null,null,null,null,null,null,null,null,null,null,null,null,null,null,null,null,null,null,null,null,null,null,"",""]
[33,null,null,null,null,null,null,null,null,null,null,null,null,null,null,null,null,null,null,null,null,null,null,"",""]
[34,null,null,null,null,null,null,null,null,null,null,null,null,null,null,null,null,null,null,null,null,null,null,"",""]
[35,null,null,null,null,null,null,null,null,null,null,null,null,null,null,null,null,null,null,null,null,null,null,"",""]
[36,null,null,null,null,null,null,null,null,null,null,null,null,null,null,null,null,null,null,null,null,null,null,"",""]
[37,null,null,null,null,null,null,null,null,null,null,null,null,null,null,null,null,null,null,null,null,null,null,"",""]
[38,null,null,null,null,null,null,null,null,null,null,null,null,null,null,null,null,null,null,null,null,null,null,"",""]
[39,null,null,null,null,null,null,null,null,null,null,null,null,null,null,null,null,null,null,null,null,null,null,""]
[40,null,null,null,null,null,null,null,null,null,null,null,null,null,null,null,null,null,null,null,null,null,null,"",""]
[41,null,null,null,null,null,null,null,null,null,null,null,null,null,null,null,null,null,null,null,null,null,null,"",""]

{"sheet":"2.Dön.-1.Sın.","index":3,"n_rows":69,"n_cols":25,"rows_kept":69,"cut":false,"hidden":false,"merged":[[0,0,0,23],[1,0,1,2],[1,3,1,23],[2,0,2,2],[2,3,2,8],[2,9,2,12],[2,13,2,23],[3,0,3,2],[3,3,3,8],[3,9,3,12],[3,13,3,23],[4,0,4,2],[4,3,4,8],[4,9,4,12],[4,13,4,23],[6,2,6,5],[6,13,6,16],[6,18,6,22],[7,2,7,4],[7,13,7,16],[7,18,7,22],[8,2,8,4],[8,13,8,16],[8,18,8,22],[9,2,9,4],[9,13,9,16],[9,18,9,22],[18,0,18,2],[18,23,19,23],[19,0,19,2],[10,2,10,4],[10,13,10,18],[10,19,10,23],[11,2,11,4],[11,13,11,18],[11,19,11,23],[13,0,13,2],[14,0,17,14],[14,15,14,23],[15,15,15,23],[16,15,16,23],[26,0,26,23],[20,0,20,2],[21,0,21,2],[22,0,22,2],[23,0,23,2],[24,0,24,2],[25,0,25,2]]}
["KLASİK SINAV ANALİZİ"]
["OKUL ADI:",null,null,{"$f":"ÖĞRENCİ_LİSTESİ!J2","v":"GÜL KIZ MESLEKİ VE TEKNİK ANADOLU LİSESİ"}]
["ÖĞRETİM YILI:",null,null,{"$f":"ÖĞRENCİ_LİSTESİ!J3","v":"2024-2025 EĞİTİM ÖĞRETİM YILI"},null,null,null,null,null,"DERS:",null,null,null,{"$f":"ÖĞRENCİ_LİSTESİ!J4","v":"AHİLİK KÜLTÜRÜ VE GİRİŞİMCİLİK"}]
["DÖNEM:",null,null,null,null,null,null,null,null,"ÖĞRETMEN ADI:",null,null,null,{"$f":"ÖĞRENCİ_LİSTESİ!J5","v":"Ayşe ÖZTÜRK"}]
["SINIF:",null,null,null,null,null,null,null,null,"SINAV NO:"]
[]
[null,null,"PUAN DAĞILIMI",null,null,null,null,null,null,null,null,null,null,"ÖĞRENCİ SAYISI :",null,null,null,{"$f":"COUNTA($B$29:$B$69)","v":0},"ARİTMETİK ORTALAMA :",null,null,null,null,{"$f":"IF($R$7=0,\"\",AVERAGE(X29:X69))","v":""}]
[null,null,"0 - 49 ARASI",null,null,{"$f":"COUNTIF($Y$29:$Y$69,1)","v":0},null,null,null,null,null,null,null,"BAŞARILI :",null,null,null,{"$f":"COUNTIF($Y$29:$Y$69,\">1\")","v":0},"MEDYAN (ORTANCA) :",null,null,null,null,{"$f":"IF($R$7=0,\"\",MEDIAN(X29:X69))","v":""}]
[null,null,"50 - 59 ARASI",null,null,{"$f":"COUNTIF($Y$29:$Y$69,2)","v":0},null,null,null,null,null,null,null,"BAŞARISIZ :",null,null,null,{"$f":"COUNTIF($Y$29:$Y$69,\"1\")","v":0},"RANJ (DİZİ GENİŞLİĞİ) :",null,null,null,null,{"$f":"IF($R$7=0,\"\",(LARGE(X29:X69,1)-SMALL(X29:X69,1)))","v":""}]
[null,null,"60 - 69 ARASI",null,null,{"$f":"COUNTIF($Y$29:$Y$69,3)","v":0},null,null,null,null,null,null,null,"BAŞARI ORANI :",null,null,null,{"$f":"IF($R$7=0,\"\",100*R8/$R$7)","v":""},"STANDART SAPMA :",null,null,null,null,{"$f":"IF($R$7=0,\"\",(STDEV(X29:X69)))","v":""}]
[null,null,"70 - 84 ARASI",null,null,{"$f":"COUNTIF($Y$29:$Y$69,4)","v":0},null,null,null,null,null,null,null,"ÇARPIKLIK DEĞERİ :",null,null,null,null,null,{"$f":"IF($R$7=0,\"\",IF(X10=0,\"\",(3*($X$7-$X$8)/$X$10)))","v":""}]
[null,null,"85 - 100 ARASI",null,null,{"$f":"COUNTIF($Y$29:$Y$69,5)","v":0},null,null,null,null,null,null,null,"SINAVIN ZORLUK DERECESİ :",null,null,null,null,null,{"$f":"IF(T11=\"\",\"\",(IF(T11<=0,\"SINAV KOLAY\",IF(T11<0.1,\"SINAV HAFİF ZOR\",IF(T11<=0.25,\"SINAV ORTA ZOR\",\"SINAV ÇOK ZOR\")))))","v":""}]
[]
["AÇIKLAMA :"]
[{"$f":"IF(T12=\"\",\"\",(IF($T$12=\"SINAV KOLAY\",\"Sınavın Çarpıklık Değerine (Zorluk Derecesine) göre; Sınav Kolaydır. Sınav öğrenci seviyesinin altındadır yada beklenen davranışlar çok iyi kazanılmıştır.\",IF($T$12=\"SINAV HAFİF ZOR\",\"Sınavın Çarpıklık Değerine (Zorluk Derecesine) göre; Sınav Hafif Zordur. Sınav öğrenci seviyesindedir yada beklenen davranışlar kazanılmıştır.\",IF($T$12=\"SINAV ORTA ZOR\",\"Sınavın Çarpıklık Değerine (Zorluk Derecesine) göre; Sınav Orta Zordur. Sınav öğrenci seviyesinin biraz üzerindedir yada beklenen davranışların bir kısmı kazanılmamıştır.\",IF($T$12=\"SINAV ÇOK ZOR\",\"Sınavın Çarpıklık Değerine (Zorluk Derecesine) göre; Sınav Çok Zordur. Sınav öğrenci seviyesinin üzerindedir yada beklenen davranışlar kazanılmamıştır.\",\"\"))))&IF($X$9>=$X$21/2+10,\" Dizi genişliği büyük olduğundan öğrenciler arasında belirgin bir seviye farkı vardır.\",IF($X$9<=$X$21/2-10,\" Dizi genişliği küçük olduğundan öğrencilerin çoğunluğu aynı seviyededir.\",\" Dizi genişliği beklenen değerdedir ve öğrenciler arasında seviye farkı yoktur.\"))&IF($X$9/$X$10<4,\" Standart Sapma büyüktür ve Sınavın güvenilirliği yüksektir.\",IF($X$9/$X$10>6,\" Standart Sapma küçüktür ve Sınavın güvenilirliği düşüktür.\",\" Standart Sapma beklenen değerdedir ve Sınavın güvenilirliği iyidir.\"))))","v":""},null,null,null,null,null,null,null,null,null,null,null,null,null,null,"……/……/20……"]
[null,null,null,null,null,null,null,null,null,null,null,null,null,null,null,{"$f":"IF(N4=\"\",\"\",N4)","v":"Ayşe ÖZTÜRK"}]
[null,null,null,null,null,null,null,null,null,null,null,null,null,null,null,"İmza "]
[]
["SORULAR",null,null,1,2,3,4,5,6,7,8,9,10,11,12,13,14,15,16,17,18,19,20,"TOPLAM / ORTALAMA"]
["KONU VE KAZANIMLAR",null,null,"KONU1 ","KONU2","KONU3","KONU4","KONU5","KONU6","KONU7","KONU8","KONU9","KONU10"]
["PUAN DEĞERLERİ",null,null,10,10,10,10,10,10,10,10,10,10,null,null,null,null,null,null,null,null,null,null,{"$f":"SUM(D21:W21)","v":100}]
["SORUYA CEVAP VEREN ÖĞRENCİ SAYISI:",null,null,{"$f":"IF(D21=\"\",\"\",COUNTA(D29:D69))","v":0},0,0,0,0,0,0,0,0,0,"","","","","","","","","","",{"$f":"IF(X21=0,\"\",AVERAGE(D22:W22))","v":0}]
["SORUYA CEVAP VERMEYEN ÖĞRENCİ SAYISI:",null,null,{"$f":"IF(D21=\"\",\"\",$R$7-D22)","v":0},{"$f":"IF(E21=\"\",\"\",$R$7-E22)","v":0},0,0,0,0,0,0,0,0,"","","","","","","","","","",{"$f":"IF(X21=0,\"\",AVERAGE(D23:W23))","v":0}]
["SORUNUN CEVAPLANMA YÜZDESİ:",null,null,{"$f":"IF($R$7=0,\"\",IF(D21=\"\",\"\",100*D22/$R$7))","v":""},"","","","","","","","","",{"$f":"IF($R$7=0,\"\",IF(N21=\"\",\"\",100*N22/$R$7))","v":""},{"$f":"IF($R$7=0,\"\",IF(O21=\"\",\"\",100*O22/$R$7))","v":""},"","","","","","","","",{"$f":"IF($R$7=0,\"\",IF(X21=0,\"\",AVERAGE(D24:W24)))","v":""}]
["SORUDAN ALINAN ORT. PUAN:",null,null,{"$f":"IF($R$7=0,\"\",IF(D21=\"\",\"\",SUM(D29:D69)/$R$7))","v":""},"","","","","","","","","","","","","","","","","","","",{"$f":"IF($R$7=0,\"\",IF(X21=0,\"\",AVERAGE(D25:W25)))","v":""}]
["KONU ANALİZİ",null,null,{"$f":"IF(D25=\"\",\"\",(IF(D25<D21*0.25,\"TEKRAR EDİLMELİ\",IF(D25<D21*0.5,\"TEKRAR EDİLEBİLİR\",IF(D25<D21*0.75,\"ANLAŞILMIŞ\",IF(D25>=D21*0.75,\"İYİ ANLAŞILMIŞ\",\"\"))))))","v":""},{"$f":"IF(E25=\"\",\"\",(IF(E25<E21*0.25,\"TEKRAR EDİLMELİ\",IF(E25<E21*0.5,\"TEKRAR EDİLEBİLİR\",IF(E25<E21*0.75,\"ANLAŞILMIŞ\",IF(E25>=0.75,\"İYİ ANLAŞILMIŞ\",\"\"))))))","v":""},"","","","","","","","","","","","","","","","","",""]
["ÖĞRENCİLERİN SORULARA VERDİĞİ CEVAPLARIN PUAN DEĞERLERİ"]
["SIRA","NO","AD SOYAD",1,2,3,4,5,6,7,8,9,10,11,12,13,14,15,16,17,18,19,20,"PUANI"]
[1,null,null,null,null,null,null,null,null,null,null,null,null,null,null,null,null,null,null,null,null,null,null,{"$f":"IF(B29=\"\",\"\",SUM(D29:W29))","v":""},{"$f":"IF(X29=\"\",\"\",IF(X29<50,1,IF(X29<60,2,IF(X29<70,3,IF(X29<85,4,5)))))","v":""}]
[2,null,null,null,null,null,null,null,null,null,null,null,null,null,null,null,null,null,null,null,null,null,null,{"$f":"IF(B30=\"\",\"\",SUM(D30:W30))","v":""},{"$f":"IF(X30=\"\",\"\",IF(X30<50,1,IF(X30<60,2,IF(X30<70,3,IF(X30<85,4,5)))))","v":""}]
[3,null,null,null,null,null,null,null,null,null,null,null,null,null,null,null,null,null,null,null,null,null,null,"",""]
[4,null,null,null,null,null,null,null,null,null,null,null,null,null,null,null,null,null,null,null,null,null,null,"",""]
[5,null,null,null,null,null,null,null,null,null,null,null,null,null,null,null,null,null,null,null,null,null,null,"",""]
[6,null,null,null,null,null,null,null,null,null,null,null,null,null,null,null,null,null,null,null,null,null,null,"",""]
[7,null,null,null,null,null,null,null,null,null,null,null,null,null,null,null,null,null,null,null,null,null,null,"",""]
[8,null,null,null,null,null,null,null,null,null,null,null,null,null,null,null,null,null,null,null,null,null,null,"",""]
[9,null,null,null,null,null,null,null,null,null,null,null,null,null,null,null,null,null,null,null,null,null,null,"",""]
[10,null,null,null,null,null,null,null,null,null,null,null,null,null,null,null,null,null,null,null,null,null,null,"",""]
[11,null,null,null,null,null,null,null,null,null,null,null,null,null,null,null,null,null,null,null,null,null,null,"",""]
[12,null,null,null,null,null,null,null,null,null,null,null,null,null,null,null,null,null,null,null,null,null,null,"",""]
[13,null,null,null,null,null,null,null,null,null,null,null,null,null,null,null,null,null,null,null,null,null,null,"",""]
[14,null,null,null,null,null,null,null,null,null,null,null,null,null,null,null,null,null,null,null,null,null,null,"",""]
[15,null,null,null,null,null,null,null,null,null,null,null,null,null,null,null,null,null,null,null,null,null,null,"",""]
[16,null,null,null,null,null,null,null,null,null,null,null,null,null,null,null,null,null,null,null,null,null,null,"",""]
[17,null,null,null,null,null,null,null,null,null,null,null,null,null,null,null,null,null,null,null,null,null,null,"",""]
[18,null,null,null,null,null,null,null,null,null,null,null,null,null,null,null,null,null,null,null,null,null,null,"",""]
[19,null,null,null,null,null,null,null,null,null,null,null,null,null,null,null,null,null,null,null,null,null,null,"",""]
[20,null,null,null,null,null,null,null,null,null,null,null,null,null,null,null,null,null,null,null,null,null,null,"",""]
[21,null,null,null,null,null,null,null,null,null,null,null,null,null,null,null,null,null,null,null,null,null,null,"",""]
[22,null,null,null,null,null,null,null,null,null,null,null,null,null,null,null,null,null,null,null,null,null,null,"",""]
[23,null,null,null,null,null,null,null,null,null,null,null,null,null,null,null,null,null,null,null,null,null,null,"",""]
[24,null,null,null,null,null,null,null,null,null,null,null,null,null,null,null,null,null,null,null,null,null,null,"",""]
[25,null,null,null,null,null,null,null,null,null,null,null,null,null,null,null,null,null,null,null,null,null,null,"",""]
[26,null,null,null,null,null,null,null,null,null,null,null,null,null,null,null,null,null,null,null,null,null,null,"",""]
[27,null,null,null,null,null,null,null,null,null,null,null,null,null,null,null,null,null,null,null,null,null,null,"",""]
[28,null,null,null,null,null,null,null,null,null,null,null,null,null,null,null,null,null,null,null,null,null,null,"",""]
[29,null,null,null,null,null,null,null,null,null,null,null,null,null,null,null,null,null,null,null,null,null,null,"",""]
[30,null,null,null,null,null,null,null,null,null,null,null,null,null,null,null,null,null,null,null,null,null,null,"",""]
[31,null,null,null,null,null,null,null,null,null,null,null,null,null,null,null,null,null,null,null,null,null,null,"",""]
[32,null,null,null,null,null,null,null,null,null,null,null,null,null,null,null,null,null,null,null,null,null,null,"",""]
[33,null,null,null,null,null,null,null,null,null,null,null,null,null,null,null,null,null,null,null,null,null,null,"",""]
[34,null,null,null,null,null,null,null,null,null,null,null,null,null,null,null,null,null,null,null,null,null,null,"",""]
[35,null,null,null,null,null,null,null,null,null,null,null,null,null,null,null,null,null,null,null,null,null,null,"",""]
[36,null,null,null,null,null,null,null,null,null,null,null,null,null,null,null,null,null,null,null,null,null,null,"",""]
[37,null,null,null,null,null,null,null,null,null,null,null,null,null,null,null,null,null,null,null,null,null,null,"",""]
[38,null,null,null,null,null,null,null,null,null,null,null,null,null,null,null,null,null,null,null,null,null,null,"",""]
[39,null,null,null,null,null,null,null,null,null,null,null,null,null,null,null,null,null,null,null,null,null,null,""]
[40,null,null,null,null,null,null,null,null,null,null,null,null,null,null,null,null,null,null,null,null,null,null,"",""]
[41,null,null,null,null,null,null,null,null,null,null,null,null,null,null,null,null,null,null,null,null,null,null,"",""]

{"sheet":"2.Dön.-2.Sın.","index":4,"n_rows":69,"n_cols":25,"rows_kept":69,"cut":false,"hidden":false,"merged":[[0,0,0,23],[1,0,1,2],[1,3,1,23],[2,0,2,2],[2,3,2,8],[2,9,2,12],[2,13,2,23],[3,0,3,2],[3,3,3,8],[3,9,3,12],[3,13,3,23],[4,0,4,2],[4,3,4,8],[4,9,4,12],[4,13,4,23],[6,2,6,5],[6,13,6,16],[6,18,6,22],[7,2,7,4],[7,13,7,16],[7,18,7,22],[8,2,8,4],[8,13,8,16],[8,18,8,22],[9,2,9,4],[9,13,9,16],[9,18,9,22],[18,0,18,2],[18,23,19,23],[19,0,19,2],[10,2,10,4],[10,13,10,18],[10,19,10,23],[11,2,11,4],[11,13,11,18],[11,19,11,23],[13,0,13,2],[14,0,17,14],[14,15,14,23],[15,15,15,23],[16,15,16,23],[26,0,26,23],[20,0,20,2],[21,0,21,2],[22,0,22,2],[23,0,23,2],[24,0,24,2],[25,0,25,2]]}
["KLASİK SINAV ANALİZİ"]
["OKUL ADI:",null,null,{"$f":"ÖĞRENCİ_LİSTESİ!J2","v":"GÜL KIZ MESLEKİ VE TEKNİK ANADOLU LİSESİ"}]
["ÖĞRETİM YILI:",null,null,{"$f":"ÖĞRENCİ_LİSTESİ!J3","v":"2024-2025 EĞİTİM ÖĞRETİM YILI"},null,null,null,null,null,"DERS:",null,null,null,{"$f":"ÖĞRENCİ_LİSTESİ!J4","v":"AHİLİK KÜLTÜRÜ VE GİRİŞİMCİLİK"}]
["DÖNEM:",null,null,null,null,null,null,null,null,"ÖĞRETMEN ADI:",null,null,null,{"$f":"ÖĞRENCİ_LİSTESİ!J5","v":"Ayşe ÖZTÜRK"}]
["SINIF:",null,null,null,null,null,null,null,null,"SINAV NO:"]
[]
[null,null,"PUAN DAĞILIMI",null,null,null,null,null,null,null,null,null,null,"ÖĞRENCİ SAYISI :",null,null,null,{"$f":"COUNTA($B$29:$B$69)","v":0},"ARİTMETİK ORTALAMA :",null,null,null,null,{"$f":"IF($R$7=0,\"\",AVERAGE(X29:X69))","v":""}]
[null,null,"0 - 49 ARASI",null,null,{"$f":"COUNTIF($Y$29:$Y$69,1)","v":0},null,null,null,null,null,null,null,"BAŞARILI :",null,null,null,{"$f":"COUNTIF($Y$29:$Y$69,\">1\")","v":0},"MEDYAN (ORTANCA) :",null,null,null,null,{"$f":"IF($R$7=0,\"\",MEDIAN(X29:X69))","v":""}]
[null,null,"50 - 59 ARASI",null,null,{"$f":"COUNTIF($Y$29:$Y$69,2)","v":0},null,null,null,null,null,null,null,"BAŞARISIZ :",null,null,null,{"$f":"COUNTIF($Y$29:$Y$69,\"1\")","v":0},"RANJ (DİZİ GENİŞLİĞİ) :",null,null,null,null,{"$f":"IF($R$7=0,\"\",(LARGE(X29:X69,1)-SMALL(X29:X69,1)))","v":""}]
[null,null,"60 - 69 ARASI",null,null,{"$f":"COUNTIF($Y$29:$Y$69,3)","v":0},null,null,null,null,null,null,null,"BAŞARI ORANI :",null,null,null,{"$f":"IF($R$7=0,\"\",100*R8/$R$7)","v":""},"STANDART SAPMA :",null,null,null,null,{"$f":"IF($R$7=0,\"\",(STDEV(X29:X69)))","v":""}]
[null,null,"70 - 84 ARASI",null,null,{"$f":"COUNTIF($Y$29:$Y$69,4)","v":0},null,null,null,null,null,null,null,"ÇARPIKLIK DEĞERİ :",null,null,null,null,null,{"$f":"IF($R$7=0,\"\",IF(X10=0,\"\",(3*($X$7-$X$8)/$X$10)))","v":""}]
[null,null,"85 - 100 ARASI",null,null,{"$f":"COUNTIF($Y$29:$Y$69,5)","v":0},null,null,null,null,null,null,null,"SINAVIN ZORLUK DERECESİ :",null,null,null,null,null,{"$f":"IF(T11=\"\",\"\",(IF(T11<=0,\"SINAV KOLAY\",IF(T11<0.1,\"SINAV HAFİF ZOR\",IF(T11<=0.25,\"SINAV ORTA ZOR\",\"SINAV ÇOK ZOR\")))))","v":""}]
[]
["AÇIKLAMA :"]
[{"$f":"IF(T12=\"\",\"\",(IF($T$12=\"SINAV KOLAY\",\"Sınavın Çarpıklık Değerine (Zorluk Derecesine) göre; Sınav Kolaydır. Sınav öğrenci seviyesinin altındadır yada beklenen davranışlar çok iyi kazanılmıştır.\",IF($T$12=\"SINAV HAFİF ZOR\",\"Sınavın Çarpıklık Değerine (Zorluk Derecesine) göre; Sınav Hafif Zordur. Sınav öğrenci seviyesindedir yada beklenen davranışlar kazanılmıştır.\",IF($T$12=\"SINAV ORTA ZOR\",\"Sınavın Çarpıklık Değerine (Zorluk Derecesine) göre; Sınav Orta Zordur. Sınav öğrenci seviyesinin biraz üzerindedir yada beklenen davranışların bir kısmı kazanılmamıştır.\",IF($T$12=\"SINAV ÇOK ZOR\",\"Sınavın Çarpıklık Değerine (Zorluk Derecesine) göre; Sınav Çok Zordur. Sınav öğrenci seviyesinin üzerindedir yada beklenen davranışlar kazanılmamıştır.\",\"\"))))&IF($X$9>=$X$21/2+10,\" Dizi genişliği büyük olduğundan öğrenciler arasında belirgin bir seviye farkı vardır.\",IF($X$9<=$X$21/2-10,\" Dizi genişliği küçük olduğundan öğrencilerin çoğunluğu aynı seviyededir.\",\" Dizi genişliği beklenen değerdedir ve öğrenciler arasında seviye farkı yoktur.\"))&IF($X$9/$X$10<4,\" Standart Sapma büyüktür ve Sınavın güvenilirliği yüksektir.\",IF($X$9/$X$10>6,\" Standart Sapma küçüktür ve Sınavın güvenilirliği düşüktür.\",\" Standart Sapma beklenen değerdedir ve Sınavın güvenilirliği iyidir.\"))))","v":""},null,null,null,null,null,null,null,null,null,null,null,null,null,null,"……/……/20……"]
[null,null,null,null,null,null,null,null,null,null,null,null,null,null,null,{"$f":"IF(N4=\"\",\"\",N4)","v":"Ayşe ÖZTÜRK"}]
[null,null,null,null,null,null,null,null,null,null,null,null,null,null,null,"İmza "]
[]
["SORULAR",null,null,1,2,3,4,5,6,7,8,9,10,11,12,13,14,15,16,17,18,19,20,"TOPLAM / ORTALAMA"]
["KONU VE KAZANIMLAR",null,null,"KONU1 ","KONU2","KONU3","KONU4","KONU5","KONU6","KONU7","KONU8","KONU9","KONU10"]
["PUAN DEĞERLERİ",null,null,10,10,10,10,10,10,10,10,10,10,null,null,null,null,null,null,null,null,null,null,{"$f":"SUM(D21:W21)","v":100}]
["SORUYA CEVAP VEREN ÖĞRENCİ SAYISI:",null,null,{"$f":"IF(D21=\"\",\"\",COUNTA(D29:D69))","v":0},0,0,0,0,0,0,0,0,0,"","","","","","","","","","",{"$f":"IF(X21=0,\"\",AVERAGE(D22:W22))","v":0}]
["SORUYA CEVAP VERMEYEN ÖĞRENCİ SAYISI:",null,null,{"$f":"IF(D21=\"\",\"\",$R$7-D22)","v":0},{"$f":"IF(E21=\"\",\"\",$R$7-E22)","v":0},0,0,0,0,0,0,0,0,"","","","","","","","","","",{"$f":"IF(X21=0,\"\",AVERAGE(D23:W23))","v":0}]
["SORUNUN CEVAPLANMA YÜZDESİ:",null,null,{"$f":"IF($R$7=0,\"\",IF(D21=\"\",\"\",100*D22/$R$7))","v":""},"","","","","","","","","",{"$f":"IF($R$7=0,\"\",IF(N21=\"\",\"\",100*N22/$R$7))","v":""},{"$f":"IF($R$7=0,\"\",IF(O21=\"\",\"\",100*O22/$R$7))","v":""},"","","","","","","","",{"$f":"IF($R$7=0,\"\",IF(X21=0,\"\",AVERAGE(D24:W24)))","v":""}]
["SORUDAN ALINAN ORT. PUAN:",null,null,{"$f":"IF($R$7=0,\"\",IF(D21=\"\",\"\",SUM(D29:D69)/$R$7))","v":""},"","","","","","","","","","","","","","","","","","","",{"$f":"IF($R$7=0,\"\",IF(X21=0,\"\",AVERAGE(D25:W25)))","v":""}]
["KONU ANALİZİ",null,null,{"$f":"IF(D25=\"\",\"\",(IF(D25<D21*0.25,\"TEKRAR EDİLMELİ\",IF(D25<D21*0.5,\"TEKRAR EDİLEBİLİR\",IF(D25<D21*0.75,\"ANLAŞILMIŞ\",IF(D25>=D21*0.75,\"İYİ ANLAŞILMIŞ\",\"\"))))))","v":""},{"$f":"IF(E25=\"\",\"\",(IF(E25<E21*0.25,\"TEKRAR EDİLMELİ\",IF(E25<E21*0.5,\"TEKRAR EDİLEBİLİR\",IF(E25<E21*0.75,\"ANLAŞILMIŞ\",IF(E25>=0.75,\"İYİ ANLAŞILMIŞ\",\"\"))))))","v":""},"","","","","","","","","","","","","","","","","",""]
["ÖĞRENCİLERİN SORULARA VERDİĞİ CEVAPLARIN PUAN DEĞERLERİ"]
["SIRA","NO","AD SOYAD",1,2,3,4,5,6,7,8,9,10,11,12,13,14,15,16,17,18,19,20,"PUANI"]
[1,null,null,null,null,null,null,null,null,null,null,null,null,null,null,null,null,null,null,null,null,null,null,{"$f":"IF(B29=\"\",\"\",SUM(D29:W29))","v":""},{"$f":"IF(X29=\"\",\"\",IF(X29<50,1,IF(X29<60,2,IF(X29<70,3,IF(X29<85,4,5)))))","v":""}]
[2,null,null,null,null,null,null,null,null,null,null,null,null,null,null,null,null,null,null,null,null,null,null,{"$f":"IF(B30=\"\",\"\",SUM(D30:W30))","v":""},{"$f":"IF(X30=\"\",\"\",IF(X30<50,1,IF(X30<60,2,IF(X30<70,3,IF(X30<85,4,5)))))","v":""}]
[3,null,null,null,null,null,null,null,null,null,null,null,null,null,null,null,null,null,null,null,null,null,null,"",""]
[4,null,null,null,null,null,null,null,null,null,null,null,null,null,null,null,null,null,null,null,null,null,null,"",""]
[5,null,null,null,null,null,null,null,null,null,null,null,null,null,null,null,null,null,null,null,null,null,null,"",""]
[6,null,null,null,null,null,null,null,null,null,null,null,null,null,null,null,null,null,null,null,null,null,null,"",""]
[7,null,null,null,null,null,null,null,null,null,null,null,null,null,null,null,null,null,null,null,null,null,null,"",""]
[8,null,null,null,null,null,null,null,null,null,null,null,null,null,null,null,null,null,null,null,null,null,null,"",""]
[9,null,null,null,null,null,null,null,null,null,null,null,null,null,null,null,null,null,null,null,null,null,null,"",""]
[10,null,null,null,null,null,null,null,null,null,null,null,null,null,null,null,null,null,null,null,null,null,null,"",""]
[11,null,null,null,null,null,null,null,null,null,null,null,null,null,null,null,null,null,null,null,null,null,null,"",""]
[12,null,null,null,null,null,null,null,null,null,null,null,null,null,null,null,null,null,null,null,null,null,null,"",""]
[13,null,null,null,null,null,null,null,null,null,null,null,null,null,null,null,null,null,null,null,null,null,null,"",""]
[14,null,null,null,null,null,null,null,null,null,null,null,null,null,null,null,null,null,null,null,null,null,null,"",""]
[15,null,null,null,null,null,null,null,null,null,null,null,null,null,null,null,null,null,null,null,null,null,null,"",""]
[16,null,null,null,null,null,null,null,null,null,null,null,null,null,null,null,null,null,null,null,null,null,null,"",""]
[17,null,null,null,null,null,null,null,null,null,null,null,null,null,null,null,null,null,null,null,null,null,null,"",""]
[18,null,null,null,null,null,null,null,null,null,null,null,null,null,null,null,null,null,null,null,null,null,null,"",""]
[19,null,null,null,null,null,null,null,null,null,null,null,null,null,null,null,null,null,null,null,null,null,null,"",""]
[20,null,null,null,null,null,null,null,null,null,null,null,null,null,null,null,null,null,null,null,null,null,null,"",""]
[21,null,null,null,null,null,null,null,null,null,null,null,null,null,null,null,null,null,null,null,null,null,null,"",""]
[22,null,null,null,null,null,null,null,null,null,null,null,null,null,null,null,null,null,null,null,null,null,null,"",""]
[23,null,null,null,null,null,null,null,null,null,null,null,null,null,null,null,null,null,null,null,null,null,null,"",""]
[24,null,null,null,null,null,null,null,null,null,null,null,null,null,null,null,null,null,null,null,null,null,null,"",""]
[25,null,null,null,null,null,null,null,null,null,null,null,null,null,null,null,null,null,null,null,null,null,null,"",""]
[26,null,null,null,null,null,null,null,null,null,null,null,null,null,null,null,null,null,null,null,null,null,null,"",""]
[27,null,null,null,null,null,null,null,null,null,null,null,null,null,null,null,null,null,null,null,null,null,null,"",""]
[28,null,null,null,null,null,null,null,null,null,null,null,null,null,null,null,null,null,null,null,null,null,null,"",""]
[29,null,null,null,null,null,null,null,null,null,null,null,null,null,null,null,null,null,null,null,null,null,null,"",""]
[30,null,null,null,null,null,null,null,null,null,null,null,null,null,null,null,null,null,null,null,null,null,null,"",""]
[31,null,null,null,null,null,null,null,null,null,null,null,null,null,null,null,null,null,null,null,null,null,null,"",""]
[32,null,null,null,null,null,null,null,null,null,null,null,null,null,null,null,null,null,null,null,null,null,null,"",""]
[33,null,null,null,null,null,null,null,null,null,null,null,null,null,null,null,null,null,null,null,null,null,null,"",""]
[34,null,null,null,null,null,null,null,null,null,null,null,null,null,null,null,null,null,null,null,null,null,null,"",""]
[35,null,null,null,null,null,null,null,null,null,null,null,null,null,null,null,null,null,null,null,null,null,null,"",""]
[36,null,null,null,null,null,null,null,null,null,null,null,null,null,null,null,null,null,null,null,null,null,null,"",""]
[37,null,null,null,null,null,null,null,null,null,null,null,null,null,null,null,null,null,null,null,null,null,null,"",""]
[38,null,null,null,null,null,null,null,null,null,null,null,null,null,null,null,null,null,null,null,null,null,null,"",""]
[39,null,null,null,null,null,null,null,null,null,null,null,null,null,null,null,null,null,null,null,null,null,null,""]
[40,null,null,null,null,null,null,null,null,null,null,null,null,null,null,null,null,null,null,null,null,null,null,"",""]
[41,null,null,null,null,null,null,null,null,null,null,null,null,null,null,null,null,null,null,null,null,null,null,"",""]

{"sheet":"PERFORMANS_ÖLÇEKLERİ ","index":5,"n_rows":49,"n_cols":14,"rows_kept":49,"cut":false,"hidden":false,"merged":[[0,0,0,13],[6,13,7,13],[6,7,7,7],[6,0,7,0],[6,1,7,1],[6,2,7,2],[1,5,1,13],[2,12,2,13],[2,9,2,11],[2,5,2,8],[1,1,1,2],[2,1,2,2],[1,3,1,4],[2,3,2,4],[4,3,4,7],[4,8,4,13],[4,0,5,2],[47,2,47,4],[48,2,48,4],[47,10,47,12],[48,10,48,12]]}
["GÜL KIZ MESLEKİ VE TEKNİK ANADOLU LİSESİ PERFORMANS DEĞERLENDİRME ÖLÇEĞİ"]
["DERS YILI",{"$f":"ÖĞRENCİ_LİSTESİ!J3","v":"2024-2025 EĞİTİM ÖĞRETİM YILI"},null,"DERSİN ADI",null,{"$f":"ÖĞRENCİ_LİSTESİ!J4","v":"AHİLİK KÜLTÜRÜ VE GİRİŞİMCİLİK"}]
["DÖNEMİ",null,null,"SINIFI",null,{"$f":"ÖĞRENCİ_LİSTESİ!G2","v":0},null,null,null,"SINIF MEVCUDU",null,null,{"$f":"COUNTA(B9:B46)","v":0}]
[]
["ÖĞRENCİLERİN DURUMUNU BELİRLEMEYE YÖNELİK FAALİYETLER VE DEĞERLENDİRME ÖLÇÜTLERİ",null,null,"DERS VE ETKİNLİKLERE KATILIM\n (1. PERFORMANS NOTU)",null,null,null,null,"PERFORMANS ÇALIŞMALARI \n (2. PERFORMANS NOTU)"]
[null,null,null,"DERSE HAZIRLIK","DEVAM","AKTİF KATILIM","ÖRNEK DAVRANIŞLAR","TOPLAM","İÇERİK","DÜZENLEME","DİLBİLGİSİ","KİŞİSEL YANSIMA","ZAMANI İYİ KULLANMA","TOPLAM"]
["SIRA NO","OKUL NO","ADI SOYADI","ÖLÇÜT-1","ÖLÇÜT-2","ÖLÇÜT-3","ÖLÇÜT-4",{"$f":"SUM(D8:G8)","v":100},"ÖLÇÜT-1","ÖLÇÜT-2","ÖLÇÜT-3","ÖLÇÜT-4","ÖLÇÜT-5",{"$f":"SUM(I8:M8)","v":100}]
[null,null,null,20,20,30,30,null,20,20,20,20,20]
[null,null,null,{"$f":"IF(H9=\"G\",\"G\",ROUND(($D$8/$H$7)*$H9,0))","v":0},{"$f":"IF($H9=\"G\",\"G\",ROUND(($E$8/$H$7)*$H9,0))","v":0},{"$f":"IF($H9=\"G\",\"G\",ROUND(($F$8/$H$7)*$H9,0))","v":0},{"$f":"IF($H9=\"G\",\"G\",$H9-($D9+$E9+$F9))","v":0},null,{"$f":"IF($N9=\"G\",\"G\",ROUND(($I$8/$N$7)*$N9,0))","v":0},{"$f":"IF($N9=\"G\",\"G\",ROUND(($J$8/$N$7)*$N9,0))","v":0},{"$f":"IF($N9=\"G\",\"G\",ROUND(($K$8/$N$7)*$N9,0))","v":0},{"$f":"IF($N9=\"G\",\"G\",$N9-($I9+$J9+$K9+$M9))","v":0},{"$f":"IF($N9=\"G\",\"G\",IF(N9>0,M8,0))","v":0}]
[null,null,null,{"$f":"IF(H10=\"G\",\"G\",ROUND(($D$8/$H$7)*$H10,0))","v":0},{"$f":"IF($H10=\"G\",\"G\",ROUND(($E$8/$H$7)*$H10,0))","v":0},{"$f":"IF($H10=\"G\",\"G\",ROUND(($F$8/$H$7)*$H10,0))","v":0},{"$f":"IF($H10=\"G\",\"G\",$H10-($D10+$E10+$F10))","v":0},null,{"$f":"IF($N10=\"G\",\"G\",ROUND(($I$8/$N$7)*$N10,0))","v":0},{"$f":"IF($N10=\"G\",\"G\",ROUND(($J$8/$N$7)*$N10,0))","v":0},{"$f":"IF($N10=\"G\",\"G\",ROUND(($K$8/$N$7)*$N10,0))","v":0},{"$f":"IF($N10=\"G\",\"G\",$N10-($I10+$J10+$K10+$M10))","v":0},{"$f":"IF($N10=\"G\",\"G\",IF(N10>0,M9,0))","v":0}]
[null,null,null,0,0,0,0,null,0,0,0,0,0]
[null,null,null,0,0,0,0,null,0,0,0,0,0]
[null,null,null,0,0,0,0,null,0,0,0,0,0]
[null,null,null,0,0,0,0,null,0,0,0,0,0]
[null,null,null,0,0,0,0,null,0,0,0,0,0]
[null,null,null,0,0,0,0,null,0,0,0,0,0]
[null,null,null,0,0,0,0,null,0,0,0,0,0]
[null,null,null,0,0,0,0,null,0,0,0,0,0]
[null,null,null,0,0,0,0,null,0,0,0,0,0]
[null,null,null,0,0,0,0,null,0,0,0,0,0]
[null,null,null,0,0,0,0,null,0,0,0,0,0]
[null,null,null,0,0,0,0,null,0,0,0,0,0]
[null,null,null,0,0,0,0,null,0,0,0,0,0]
[null,null,null,0,0,0,0,null,0,0,0,0,0]
[null,null,null,0,0,0,0,null,0,0,0,0,0]
[null,null,null,0,0,0,0,null,0,0,0,0,0]
[null,null,null,0,0,0,0,null,0,0,0,0,0]
[null,null,null,0,0,0,0,null,0,0,0,0,0]
[null,null,null,0,0,0,0,null,0,0,0,0,0]
[null,null,null,0,0,0,0,null,0,0,0,0,0]
[null,null,null,0,0,0,0,null,0,0,0,0,0]
[null,null,null,0,0,0,0,null,0,0,0,0,0]
[null,null,null,0,0,0,0,null,0,0,0,0,0]
[null,null,null,0,0,0,0,null,0,0,0,0,0]
[null,null,null,0,0,0,0,null,0,0,0,0,0]
[null,null,null,0,0,0,0,null,0,0,0,0,0]
[null,null,null,0,0,0,0,null,0,0,0,0,0]
[null,null,null,0,0,0,0,null,0,0,0,0,0]
[null,null,null,0,0,0,0,null,0,0,0,0,0]
[null,null,null,0,0,0,0,null,0,0,0,0,0]
[null,null,null,0,0,0,0,null,0,0,0,0,0]
[null,null,null,0,0,0,0,null,0,0,0,0,0]
[null,null,null,0,0,0,0,null,0,0,0,0,0]
[null,null,null,0,0,0,0,null,0,0,0,0,0]
[null,null,null,0,0,0,0,null,0,0,0,0,0]
[null,null,null,0,0,0,0,null,0,0,0,0,0]
[]
[]
[null,null,null,null,null,null,null,null,null,null,"Okul Müdürü"]

{"sheet":"PROJE-TESPİT-FORMU","index":6,"n_rows":39,"n_cols":17,"rows_kept":39,"cut":false,"hidden":false,"merged":[[2,4,2,16],[3,1,3,3],[0,0,0,16],[1,0,1,16],[2,18,2,20],[3,0,4,0],[3,4,3,15],[3,16,4,16],[3,18,3,20],[2,0,2,1],[2,2,2,3]]}
["GÜL MESLEKİ VE TEKNİK ANADOLU LİSESİ"]
["2024/2025 EĞİTİM ÖĞRETİM YILI "]
["SINIFI",null,null,null," ÖĞRENCİ PROJE TESPİT FORMU"]
["SIRA","ÖĞRENCİNİN",null,null,"DERSLER",null,null,null,null,null,null,null,null,null,null,null,"İstemiş olduğum dersten proje \nödevi aldım \nİMZA"]
[null,"OKUL NO","ADI","SOYADI"]
[1]
[2]
[3]
[4]
[5]
[6]
[7]
[8]
[9]
[10]
[11]
[12]
[13]
[14]
[15]
[16]
[17]
[18]
[19]
[20]
[21]
[22]
[23]
[24]
[25]
[26]
[27]
[28]
[29]
[30]
[31]
[32]
[33]
[34]